bitfinex-derivatives/quotes_SOLF0:USTF0_20250530
["timestamp","ask_amount","ask_price","bid_price","bid_amount"]
[1748605546220,10.88873057,163.71,163.57,6.69553057]
[1748605546420,6.15477161,163.66,163.62,6.15619479]
[1748605546719,0.04597161,163.66,163.62,0.04649479]
[1748605547618,0.04597161,163.66,163.63,6.1095]
[1748605547814,0.04597161,163.66,163.62,0.04649479]
[1748605548414,0.04597161,163.66,163.64,6.109]
[1748605548719,0.04597161,163.66,163.62,0.04649479]
[1748605548917,6.15457161,163.66,163.62,6.15629479]
[1748605549422,0.04597161,163.66,163.62,0.04649479]
[1748605550717,6.15467161,163.66,163.62,6.15619479]
[1748605551312,0.04597161,163.66,163.62,0.04649479]
[1748605552120,6.1096,163.63,163.62,0.04649479]
[1748605552630,6.1109,163.6,163.56,6.1119]
[1748605552819,2.039,163.66,163.56,6.1119]
[1748605553018,6.69553057,163.65,163.56,6.1119]
[1748605553443,2.0368,163.64,163.56,6.1119]
[1748605553625,0.04585437,163.62,163.58,0.04057642]
[1748605553823,6.15585437,163.62,163.58,0.04057642]
[1748605554018,0.04585437,163.62,163.58,0.04057642]
[1748605554322,0.04585437,163.62,163.59,6.111]
[1748605554521,0.04585437,163.62,163.58,0.04057642]
[1748605554719,0.04585437,163.62,163.59,6.1108]
[1748605554920,6.15585437,163.62,163.59,6.1108]
[1748605555816,6.15585437,163.62,163.58,0.04057642]
[1748605556220,0.04585437,163.62,163.58,0.04057642]
[1748605556820,6.15595437,163.62,163.58,0.04057642]
[1748605557125,0.04585437,163.62,163.58,0.04057642]
[1748605557517,6.1106,163.61,163.58,0.04057642]
[1748605558319,0.04585437,163.62,163.58,0.04057642]
[1748605558929,6.1111,163.59,163.58,0.04057642]
[1748605562838,6.1111,163.59,163.5,6.69553057]
[1748605562839,6.1131,163.54,163.5,6.69553057]
[1748605563028,1.9969,163.6,163.5,6.69553057]
[1748605563437,6.1125,163.56,163.5,6.69553057]
[1748605563635,1.9969,163.6,163.5,6.69553057]
[1748605563837,0.03935194,163.57,163.53,0.03893872]
[1748605564035,6.15125194,163.57,163.54,6.1127]
[1748605564733,0.03935194,163.57,163.53,6.73446929]
[1748605565236,0.03935194,163.57,163.56,6.1122]
[1748605565438,2.0368,163.64,163.54,4.1702]
[1748605565936,6.1106,163.61,163.54,4.1702]
[1748605566237,2.0368,163.64,163.54,4.1702]
[1748605566441,0.04207668,163.61,163.57,0.04267822]
[1748605566738,6.111,163.6,163.57,6.15447822]
[1748605567237,6.15247668,163.61,163.58,6.1114]
[1748605568439,6.1108,163.6,163.57,6.15437822]
[1748605568835,0.04207668,163.61,163.57,0.04267822]
[1748605569040,6.1112,163.59,163.57,0.04267822]
[1748605569339,0.04207668,163.61,163.57,0.04267822]
[1748605569651,6.1115,163.58,163.57,0.04267822]
[1748605569841,0.04207668,163.61,163.57,0.04267822]
[1748605570346,0.04207668,163.61,163.58,6.1112]
[1748605570537,6.15267668,163.61,163.58,6.1112]
[1748605570734,6.15267668,163.61,163.59,6.111]
[1748605570952,0.04207668,163.61,163.59,6.111]
[1748605571734,0.04207668,163.61,163.57,0.04267822]
[1748605572336,6.1115,163.58,163.57,0.04267822]
[1748605576438,0.04207668,163.61,163.57,0.04267822]
[1748605576838,6.1108,163.6,163.58,6.1113]
[1748605577747,6.15257668,163.61,163.58,6.1113]
[1748605578046,6.15257668,163.61,163.59,6.111]
[1748605578246,0.04207668,163.61,163.59,6.111]
[1748605578546,0.04207668,163.61,163.6,6.1107]
[1748605580248,0.04207668,163.61,163.57,0.04267822]
[1748605581836,0.04207668,163.61,163.59,6.1108]
[1748605582239,0.04207668,163.61,163.57,0.04267822]
[1748605582441,6.1113,163.59,163.57,0.04267822]
[1748605582841,0.04207668,163.61,163.57,0.04267822]
[1748605583049,2.0451,163.6,163.45,13.33573446]
[1748605583446,6.1137,163.52,163.49,6.1146]
[1748605584150,6.1588468,163.52,163.49,6.15439717]
[1748605584347,0.0451468,163.52,163.5,6.1144]
[1748605584942,0.0451468,163.52,163.51,6.1141]
[1748605586050,2.0451,163.6,163.54,6.1128]
[1748605587151,0.03991067,163.59,163.55,0.0448813]
[1748605587853,6.1121,163.57,163.55,0.0448813]
[1748605588151,0.03991067,163.59,163.55,0.0448813]
[1748605588751,6.1122,163.57,163.55,0.0448813]
[1748605588949,0.03991067,163.59,163.55,0.0448813]
[1748605589352,6.1122,163.56,163.55,0.0448813]
[1748605592352,6.1121,163.57,163.55,0.0448813]
[1748605592750,0.03991067,163.59,163.55,0.0448813]
[1748605592947,6.1122,163.56,163.55,0.0448813]
[1748605598855,6.1122,163.56,163.55,8.13e-05]
[1748605606882,6.1159,163.47,163.45,4.2168]
[1748605607056,6.72718977,163.53,163.45,4.2168]
[1748605607458,6.116,163.46,163.45,4.2168]
[1748605608459,0.03929071,163.47,163.45,4.2168]
[1748605608859,0.03929071,163.47,163.45,10.333]
[1748605609060,0.03929071,163.47,163.45,4.2168]
[1748605609962,6.15489071,163.47,163.45,4.2168]
[1748605611765,6.15489071,163.47,163.45,10.3329]
[1748605612358,0.03929071,163.47,163.46,6.116]
[1748605615157,0.03929071,163.47,163.45,10.333]
[1748605616667,0.03929071,163.47,163.46,6.116]
[1748605619763,0.03929071,163.47,163.45,4.2168]
[1748605619969,0.03929071,163.47,163.44,145.12675339]
[1748605620375,6.15509071,163.47,163.45,6.1161]
[1748605620568,0.03929071,163.47,163.44,145.12675339]
[1748605620773,0.03929071,163.47,163.44,0.03863823]
[1748605620973,6.116,163.46,163.44,0.03863823]
[1748605622061,6.1163,163.45,163.44,0.03863823]
[1748605622271,0.03929071,163.47,163.44,0.03863823]
[1748605622472,0.03929071,163.47,163.46,6.116]
[1748605622872,8.82278977,163.58,163.45,1.995]
[1748605623070,6.1138,163.52,163.5,6.1144]
[1748605623467,2.0956,163.58,163.45,1.995]
[1748605623669,6.1129,163.55,163.46,6.72718977]
[1748605623975,0.04426817,163.52,163.49,0.04110342]
[1748605624569,0.04426817,163.52,163.51,6.1141]
[1748605625177,6.72718977,163.63,163.55,6.1125]
[1748605625377,8.69138977,163.63,163.49,6.72718977]
[1748605625679,6.1112,163.59,163.57,6.1118]
[1748605625868,1.9642,163.63,163.57,6.1118]
[1748605626176,6.15546117,163.62,163.58,0.03920084]
[1748605626371,0.04526117,163.62,163.58,0.03920084]
[1748605627079,6.1111,163.59,163.58,0.03920084]
[1748605628073,6.72718977,163.61,163.51,6.114]
[1748605628674,6.1129,163.55,163.51,6.114]
[1748605629181,6.113,163.54,163.51,6.15597132]
[1748605629776,0.04251447,163.55,163.51,0.04197132]
[1748605630278,6.1137,163.52,163.51,0.04197132]
[1748605632372,0.04251447,163.55,163.51,0.04197132]
[1748605633080,6.1132,163.54,163.51,6.15587132]
[1748605634375,6.15521447,163.55,163.51,0.04197132]
[1748605634770,6.1131,163.54,163.51,0.04197132]
[1748605635180,0.04251447,163.55,163.51,0.04197132]
[1748605635579,6.1137,163.52,163.51,0.04197132]
[1748605635880,0.04251447,163.55,163.51,0.04197132]
[1748605636080,6.1132,163.54,163.51,0.04197132]
[1748605636278,0.04251447,163.55,163.51,0.04197132]
[1748605636887,6.113,163.54,163.51,0.04197132]
[1748605637087,6.113,163.54,163.52,6.1137]
[1748605638790,6.113,163.54,163.51,6.15587132]
[1748605640089,0.04251447,163.55,163.51,0.04197132]
[1748605640985,6.113,163.54,163.51,6.15587132]
[1748605641181,6.113,163.54,163.51,0.04197132]
[1748605641883,6.113,163.54,163.51,6.15597132]
[1748605642785,6.113,163.54,163.52,6.1137]
[1748605643988,0.04251447,163.55,163.51,0.04197132]
[1748605644480,0.04251447,163.55,163.51,6.15587132]
[1748605644686,6.113,163.54,163.51,6.15587132]
[1748605645488,6.15531447,163.55,163.52,6.1136]
[1748605645791,0.04251447,163.55,163.52,6.1136]
[1748605646192,0.04251447,163.55,163.51,0.04197132]
[1748605647085,0.04251447,163.55,163.54,6.113]
[1748605650195,0.04251447,163.55,163.53,6.1132]
[1748605650587,0.04251447,163.55,163.51,0.04197132]
[1748605652097,6.1132,163.54,163.51,6.15587132]
[1748605652396,0.04251447,163.55,163.51,6.15587132]
[1748605652796,6.1132,163.54,163.51,6.15587132]
[1748605655696,6.15521447,163.55,163.52,6.1136]
[1748605655898,0.04251447,163.55,163.51,0.04197132]
[1748605656996,0.04251447,163.55,163.54,6.113]
[1748605660107,0.04251447,163.55,163.51,0.04197132]
[1748605660710,6.113,163.54,163.52,6.1135]
[1748605661208,6.15521447,163.55,163.52,6.1135]
[1748605661410,6.15521447,163.55,163.53,6.1132]
[1748605662311,6.1131,163.54,163.52,6.1136]
[1748605662706,0.04251447,163.55,163.52,6.1136]
[1748605662902,6.15531447,163.55,163.52,6.1136]
[1748605663311,6.15531447,163.55,163.53,6.1133]
[1748605663910,6.1132,163.54,163.51,0.04197132]
[1748605664215,0.04251447,163.55,163.51,0.04197132]
[1748605664407,6.1137,163.52,163.51,0.04197132]
[1748605668307,2.0718,163.54,163.43,2.116]
[1748605668812,2.0718,163.54,163.44,6.1164]
[1748605668813,6.1158,163.47,163.44,6.1164]
[1748605669307,0.04324314,163.47,163.44,6.16010982]
[1748605669812,0.04324314,163.47,163.44,0.04370982]
[1748605670208,0.04324314,163.47,163.46,6.116]
[1748605671208,0.04324314,163.47,163.44,0.04370982]
[1748605672713,6.1163,163.45,163.44,0.04370982]
[1748605678322,6.118,163.41,163.37,2.0389]
[1748605678821,6.118,163.41,163.38,6.1188]
[1748605679423,6.1567605,163.41,163.38,6.16052451]
[1748605680322,0.0387605,163.41,163.38,0.04172451]
[1748605680626,0.0387605,163.41,163.39,10.89013166]
[1748605681222,0.0387605,163.41,163.4,6.1182]
[1748605681818,0.0387605,163.41,163.39,10.89013166]
[1748605681819,6.1164,163.45,163.42,6.1173]
[1748605682318,18.4335,163.51,163.42,6.1173]
[1748605682715,6.1169,163.44,163.39,10.89013166]
[1748605682914,0.04494378,163.43,163.41,6.1177]
[1748605683117,0.04494378,163.43,163.4,0.04522135]
[1748605683317,0.04494378,163.43,163.34,6.1203]
[1748605683536,6.72673166,163.47,163.32,8.79743166]
[1748605683829,6.72673166,163.47,163.33,1.9908]
[1748605684124,12.232,163.46,163.33,1.9908]
[1748605684325,6.72673166,163.47,163.33,1.9908]
[1748605684520,0.04639144,163.42,163.38,0.04638235]
[1748605684719,0.04391316,163.42,163.3,6.72673166]
[1748605684927,6.72673166,163.41,163.3,6.1216]
[1748605685222,6.72673166,163.41,163.27,6.72673166]
[1748605685724,6.72673166,163.41,163.29,6.1221]
[1748605685926,0.04606019,163.36,163.32,0.04318406]
[1748605686121,6.1214,163.32,163.29,6.1221]
[1748605686320,0.04633691,163.32,163.29,0.04596266]
[1748605686821,6.1219,163.31,163.29,0.04596266]
[1748605687024,0.04633691,163.32,163.29,0.04596266]
[1748605687323,6.16763691,163.32,163.29,0.04596266]
[1748605687624,6.16763691,163.32,163.29,6.16816266]
[1748605687923,0.04633691,163.32,163.29,0.04596266]
[1748605688621,6.1155,163.45,163.3,11.2408096]
[1748605688823,6.1186,163.39,163.36,6.1194]
[1748605689024,6.1155,163.45,163.3,11.2408096]
[1748605689218,6.1182,163.4,163.3,11.2408096]
[1748605689420,6.1155,163.45,163.3,11.2408096]
[1748605689624,0.04487602,163.39,163.36,0.03928804]
[1748605689828,0.04487602,163.39,163.37,6.1191]
[1748605690525,0.04487602,163.39,163.38,6.1189]
[1748605693426,18.3422,163.52,163.4,6.1179]
[1748605693620,6.1477,163.51,163.34,11.2408096]
[1748605693927,6.1477,163.51,163.44,6.1166]
[1748605694119,6.1477,163.51,163.35,6.3985]
[1748605694120,6.1477,163.51,163.38,11.2408096]
[1748605694325,6.1154,163.48,163.38,11.2408096]
[1748605694635,0.04232671,163.45,163.44,6.1167]
[1748605694928,0.04163055,163.46,163.45,6.1163]
[1748605695228,0.04659651,163.47,163.44,0.04343001]
[1748605695424,0.04044215,163.47,163.44,0.0449524]
[1748605695731,6.15614215,163.47,163.44,6.1616524]
[1748605696633,6.15614215,163.47,163.44,0.0449524]
[1748605697123,6.15614215,163.47,163.44,6.1615524]
[1748605697629,6.116,163.46,163.44,0.0449524]
[1748605698327,0.04044215,163.47,163.37,6.1193]
[1748605698529,1.9509,163.46,163.37,6.1193]
[1748605698727,6.118,163.41,163.3,173.49487294]
[1748605699124,6.1185,163.4,163.3,173.49487294]
[1748605699325,1.9509,163.46,163.3,173.49487294]
[1748605699529,0.04414466,163.39,163.36,6.16638441]
[1748605699725,0.04233567,163.39,163.36,0.04213802]
[1748605699927,0.04233567,163.39,163.37,6.119]
[1748605701542,0.04233567,163.39,163.38,6.1189]
[1748605703632,6.1162,163.46,163.43,6.117]
[1748605703828,6.1162,163.46,163.34,11.2408096]
[1748605704028,1.9913,163.48,163.34,11.2408096]
[1748605704529,0.03857629,163.43,163.4,0.04003329]
[1748605704728,0.03857629,163.43,163.41,6.1176]
[1748605705426,0.03857629,163.43,163.41,6.1178]
[1748605706330,0.03857629,163.43,163.42,6.1174]
[1748605708833,4.0136,163.51,163.45,6.1162]
[1748605709234,6.1155,163.48,163.45,6.1162]
[1748605709435,13.2418096,163.56,163.47,6.1155]
[1748605709640,4.056,163.55,163.47,6.1155]
[1748605709937,0.04342785,163.53,163.38,11.2408096]
[1748605710136,4.056,163.55,163.45,6.1161]
[1748605710137,0.04288794,163.47,163.45,6.1161]
[1748605710337,0.03873659,163.48,163.45,6.1161]
[1748605710631,0.04627063,163.48,163.45,0.03998402]
[1748605711236,4.056,163.55,163.45,0.03998402]
[1748605711435,6.1132,163.54,163.43,5.9461]
[1748605711936,2.001,163.56,163.43,5.9461]
[1748605712234,6.1135,163.53,163.43,5.9461]
[1748605712436,0.0411919,163.5,163.46,0.04184083]
[1748605713335,2.0986,163.59,163.46,11.28265043]
[1748605713536,2.0986,163.59,163.46,11.2408096]
[1748605713735,6.1126,163.55,163.52,6.1135]
[1748605713934,6.1126,163.55,163.46,11.2408096]
[1748605714542,0.04550538,163.52,163.49,0.03861312]
[1748605714731,0.04704886,163.52,163.49,0.04338614]
[1748605715637,6.16104886,163.52,163.49,6.15798614]
[1748605716038,0.04704886,163.52,163.49,0.04338614]
[1748605716333,6.1141,163.51,163.49,0.04338614]
[1748605717941,6.16084886,163.52,163.49,6.15818614]
[1748605718327,6.1142,163.51,163.49,0.04338614]
[1748605719635,6.16084886,163.52,163.49,6.15798614]
[1748605719938,0.04704886,163.52,163.49,0.04338614]
[1748605720436,0.04704886,163.52,163.51,6.1141]
[1748605726043,0.04704886,163.52,163.5,6.1144]
[1748605726342,0.04704886,163.52,163.49,0.04338614]
[1748605726648,0.04704886,163.52,163.5,6.1142]
[1748605727143,0.04704886,163.52,163.51,6.1141]
[1748605733551,2.0986,163.59,163.51,6.72733462]
[1748605733740,4.0206,163.61,163.51,6.72733462]
[1748605733943,6.1113,163.59,163.56,6.112]
[1748605734541,6.15283624,163.59,163.56,6.15090909]
[1748605735751,6.1115,163.58,163.56,0.03890909]
[1748605736550,6.15273624,163.59,163.56,6.15100909]
[1748605736751,0.04153624,163.59,163.56,6.15100909]
[1748605736951,6.1115,163.58,163.56,0.03890909]
[1748605737755,6.1118,163.57,163.56,0.03890909]
[1748605741055,6.1141,163.51,163.49,2.0392]
[1748605741251,4.0206,163.61,163.45,4.2508]
[1748605741555,6.72733462,163.59,163.46,6.1158]
[1748605742057,6.1151,163.49,163.46,6.1158]
[1748605742259,6.15921435,163.49,163.46,6.15823553]
[1748605742852,0.04411435,163.49,163.47,6.1154]
[1748605743061,0.04411435,163.49,163.46,0.04243553]
[1748605743765,0.04411435,163.49,163.47,6.1154]
[1748605743955,0.04411435,163.49,163.46,0.04243553]
[1748605744463,0.04411435,163.49,163.47,6.1154]
[1748605745060,0.04411435,163.49,163.48,6.1152]
[1748605748563,0.04411435,163.49,163.46,0.04243553]
[1748605748963,6.1156,163.47,163.46,0.04243553]
[1748605749266,0.04411435,163.49,163.4,6.72733462]
[1748605749562,6.1162,163.46,163.43,6.1168]
[1748605750063,6.1167,163.44,163.43,0.04604809]
[1748605750276,0.04370414,163.46,163.33,6.72733462]
[1748605750558,6.1177,163.42,163.33,6.72733462]
[1748605750760,4.2196,163.45,163.33,6.72733462]
[1748605751355,0.04144649,163.41,163.37,0.0403812]
[1748605751757,0.04144649,163.41,163.37,6.1593812]
[1748605752158,0.04144649,163.41,163.37,0.0403812]
[1748605755167,0.04144649,163.41,163.39,6.1185]
[1748605755964,0.04144649,163.41,163.38,6.1188]
[1748605756164,0.04144649,163.41,163.37,0.0403812]
[1748605757162,0.04144649,163.41,163.39,6.1185]
[1748605759171,0.04144649,163.41,163.4,6.1182]
[1748605759363,2.0908,163.46,163.37,6.76771582]
[1748605759571,6.72733462,163.5,163.42,6.1171]
[1748605759963,6.1162,163.46,163.37,6.72733462]
[1748605760263,0.03946601,163.43,163.37,6.72733462]
[1748605760459,0.03946601,163.43,163.4,0.04601039]
[1748605760663,0.03946601,163.43,163.42,6.1174]
[1748605762462,0.03946601,163.43,163.41,6.1178]
[1748605762867,0.03946601,163.43,163.42,6.1174]
[1748605764575,0.03946601,163.43,163.41,6.1177]
[1748605765075,0.03946601,163.43,163.42,6.1174]
[1748605765767,6.3241,163.52,163.46,6.1159]
[1748605766178,6.115,163.49,163.46,6.1159]
[1748605766975,6.1152,163.48,163.46,6.16214429]
[1748605768677,6.1152,163.48,163.46,0.04624429]
[1748605770179,6.1152,163.48,163.46,6.16214429]
[1748605770480,0.04202098,163.49,163.46,0.04624429]
[1748605770681,0.04202098,163.49,163.48,6.1152]
[1748605770972,6.0633,163.57,163.46,0.04624429]
[1748605771174,6.0633,163.57,163.49,6.1147]
[1748605771382,6.0633,163.57,163.46,6.72733462]
[1748605771578,6.1135,163.53,163.46,6.72733462]
[1748605771780,6.1135,163.53,163.5,6.1142]
[1748605771978,0.04473746,163.53,163.5,0.04630986]
[1748605772385,0.04473746,163.53,163.52,6.1137]
[1748605772984,0.04473746,163.53,163.51,6.1139]
[1748605773179,0.04473746,163.53,163.5,0.04630986]
[1748605773383,0.04473746,163.53,163.51,6.1138]
[1748605773775,0.04473746,163.53,163.5,0.04630986]
[1748605774985,6.1141,163.51,163.5,0.04630986]
[1748605776889,6.1138,163.52,163.5,0.04630986]
[1748605778685,6.1141,163.51,163.5,0.04630986]
[1748605780890,6.1154,163.48,163.44,2.1454]
[1748605781082,12.79063462,163.57,163.45,6.72733462]
[1748605781386,6.1136,163.53,163.5,6.1142]
[1748605781989,6.15433027,163.53,163.5,6.15755985]
[1748605782284,0.04073027,163.53,163.5,6.15755985]
[1748605782487,0.04073027,163.53,163.5,0.04335985]
[1748605782687,6.15423027,163.53,163.5,0.04335985]
[1748605782880,0.04073027,163.53,163.51,6.1141]
[1748605784489,0.04073027,163.53,163.5,0.04335985]
[1748605785891,0.04073027,163.53,163.52,6.1137]
[1748605794190,0.04073027,163.53,163.51,6.1139]
[1748605794994,6.15413027,163.53,163.51,6.1139]
[1748605795791,0.04073027,163.53,163.51,6.1139]
[1748605796187,0.04073027,163.53,163.52,6.1137]
[1748605797596,0.04073027,163.53,163.5,0.04335985]
[1748605797597,0.04073027,163.53,163.51,6.114]
[1748605797897,0.04073027,163.53,163.5,0.04335985]
[1748605798092,0.04073027,163.53,163.51,6.1141]
[1748605799495,0.04073027,163.53,163.52,6.1137]
[1748605801596,0.04073027,163.53,163.5,0.04335985]
[1748605801896,6.15423027,163.53,163.5,0.04335985]
[1748605802198,0.04073027,163.53,163.51,6.1138]
[1748605803898,6.15403027,163.53,163.5,6.15765985]
[1748605805302,0.04073027,163.53,163.51,6.114]
[1748605805700,0.04073027,163.53,163.52,6.1137]
[1748605813407,6.0523,163.62,163.52,6.72733462]
[1748605813716,6.72733462,163.69,163.55,6.72733462]
[1748605814011,6.0115,163.68,163.58,6.1112]
[1748605814211,6.1105,163.61,163.58,6.1112]
[1748605814407,6.15518656,163.61,163.58,6.15740006]
[1748605814705,0.04468656,163.61,163.58,0.04620006]
[1748605814911,6.1107,163.6,163.58,0.04620006]
[1748605816105,6.1107,163.6,163.58,6.15760006]
[1748605816312,6.1111,163.59,163.58,0.04620006]
[1748605818408,6.1109,163.6,163.58,0.04620006]
[1748605819199,6.1111,163.59,163.58,0.04620006]
[1748605822114,6.1127,163.55,163.5,186.96836509]
[1748605822507,6.1127,163.55,163.52,6.1134]
[1748605823210,6.15536332,163.55,163.52,6.15837674]
[1748605823515,6.15536332,163.55,163.53,6.1132]
[1748605823713,6.15536332,163.55,163.52,0.04497674]
[1748605824519,0.04266332,163.55,163.52,0.04497674]
[1748605825214,6.15546332,163.55,163.53,6.1132]
[1748605825411,0.04266332,163.55,163.52,0.04497674]
[1748605827116,6.113,163.54,163.52,6.15857674]
[1748605827815,6.15536332,163.55,163.52,6.15857674]
[1748605828018,6.15536332,163.55,163.53,6.1133]
[1748605828711,6.15536332,163.55,163.52,6.15857674]
[1748605829412,6.15536332,163.55,163.53,6.1132]
[1748605830518,6.15536332,163.55,163.52,6.15857674]
[1748605830710,6.113,163.54,163.52,0.04497674]
[1748605833515,6.1133,163.53,163.52,0.04497674]
[1748605837324,6.1131,163.54,163.52,0.04497674]
[1748605838120,6.1133,163.53,163.52,0.04497674]
[1748605839121,6.1131,163.54,163.52,0.04497674]
[1748605839822,6.1133,163.53,163.52,0.04497674]
[1748605843237,10.84463462,163.54,163.47,6.1154]
[1748605843425,10.84463462,163.54,163.41,12.94843462]
[1748605843730,6.1154,163.48,163.41,12.94843462]
[1748605844229,6.1154,163.48,163.45,6.116]
[1748605844422,0.0391626,163.46,163.43,0.04419561]
[1748605844627,0.03924977,163.46,163.43,0.04184781]
[1748605845027,6.15534977,163.46,163.43,0.04184781]
[1748605845430,6.15534977,163.46,163.43,6.15884781]
[1748605846730,0.03924977,163.46,163.44,6.1166]
[1748605847230,6.15524977,163.46,163.43,6.15884781]
[1748605847429,0.03924977,163.46,163.43,0.04184781]
[1748605847823,6.15534977,163.46,163.43,6.15894781]
[1748605848434,6.1163,163.45,163.43,6.15894781]
[1748605850533,0.03924977,163.46,163.43,6.15894781]
[1748605850534,6.15534977,163.46,163.43,6.15894781]
[1748605850930,0.03924977,163.46,163.44,6.1167]
[1748605851135,0.03924977,163.46,163.43,0.04184781]
[1748605851837,0.03924977,163.46,163.45,6.1163]
[1748605852837,2.0671,163.53,163.49,6.1148]
[1748605853032,6.72733462,163.59,163.44,6.72733462]
[1748605853230,6.1394,163.6,163.52,6.1135]
[1748605853836,0.04445076,163.58,163.54,0.04296287]
[1748605854234,6.1126,163.55,163.54,0.04296287]
[1748605858343,6.1146,163.5,163.44,6.72733462]
[1748605858534,12.2232,163.58,163.44,6.72733462]
[1748605858736,6.1128,163.55,163.44,6.72733462]
[1748605858940,12.2232,163.58,163.44,6.72733462]
[1748605859337,0.04590844,163.53,163.49,0.04561729]
[1748605859644,6.1147,163.5,163.49,0.04561729]
[1748605863649,6.1141,163.51,163.49,0.04561729]
[1748605863847,0.04590844,163.53,163.49,0.04561729]
[1748605864050,0.04590844,163.53,163.52,6.1137]
[1748605864551,0.04590844,163.53,163.49,0.04561729]
[1748605864752,6.15920844,163.53,163.5,6.1142]
[1748605867050,0.04590844,163.53,163.49,0.04561729]
[1748605867452,0.04590844,163.53,163.52,6.1137]
[1748605868057,6.72733462,163.65,163.5,6.72733462]
[1748605868448,6.2363,163.66,163.5,6.72733462]
[1748605868651,6.72733462,163.64,163.5,6.72733462]
[1748605869156,6.112,163.57,163.55,0.04189084]
[1748605870657,6.1116,163.58,163.55,6.15429084]
[1748605870855,6.1116,163.58,163.55,0.04189084]
[1748605871257,6.1119,163.57,163.55,0.04189084]
[1748605871552,0.04252847,163.59,163.55,0.04189084]
[1748605872957,6.1122,163.57,163.55,0.04189084]
[1748605874661,6.1122,163.56,163.55,0.04189084]
[1748605876256,0.04252847,163.59,163.55,0.04189084]
[1748605876765,6.1117,163.58,163.56,6.112]
[1748605877164,0.04252847,163.59,163.55,0.04189084]
[1748605877356,0.04252847,163.59,163.58,6.1115]
[1748605877659,4.1064,163.66,163.56,6.72733462]
[1748605877962,4.1064,163.66,163.59,6.1111]
[1748605878570,6.1102,163.62,163.61,0.03912512]
[1748605886874,0.04344224,163.64,163.61,0.03912512]
[1748605887175,22.95243462,163.75,163.61,0.03912512]
[1748605887473,22.95243462,163.75,163.66,6.1085]
[1748605887474,6.1076,163.69,163.66,6.1085]
[1748605887674,6.1076,163.69,163.62,6.72733462]
[1748605888265,0.04126361,163.67,163.64,0.04301155]
[1748605888473,0.04254459,163.67,163.64,0.04202245]
[1748605888879,6.15064459,163.67,163.64,0.04202245]
[1748605889269,6.15064459,163.67,163.64,6.15112245]
[1748605889869,6.1086,163.66,163.64,0.04202245]
[1748605891377,6.1086,163.66,163.64,6.15112245]
[1748605892677,0.04254459,163.67,163.64,0.04202245]
[1748605893672,6.1088,163.65,163.64,0.04202245]
[1748605896675,6.1088,163.65,163.56,12.82813462]
[1748605896676,6.1104,163.61,163.56,12.82813462]
[1748605896883,8.85673462,163.66,163.53,6.72733462]
[1748605897878,0.03910288,163.61,163.58,0.04596579]
[1748605898276,6.1111,163.6,163.58,0.04596579]
[1748605898677,0.03910288,163.61,163.58,0.04596579]
[1748605899976,6.1111,163.59,163.58,0.04596579]
[1748605901072,6.1109,163.6,163.58,0.04596579]
[1748605901278,0.03910288,163.61,163.58,0.04596579]
[1748605902179,6.1111,163.59,163.58,0.04596579]
[1748605905079,0.03910288,163.61,163.58,0.04596579]
[1748605907182,0.03910288,163.61,163.6,6.1107]
[1748605907488,0.03910288,163.61,163.58,0.04596579]
[1748605907681,0.03910288,163.61,163.59,6.1109]
[1748605908585,0.03910288,163.61,163.6,6.1107]
[1748605913776,6.72733462,163.69,163.62,6.1097]
[1748605914376,6.1089,163.65,163.62,6.1097]
[1748605914983,0.03883476,163.65,163.62,0.04383639]
[1748605915575,6.1095,163.64,163.62,0.04383639]
[1748605918081,6.1096,163.63,163.62,0.04383639]
[1748605920282,6.1093,163.64,163.62,0.04383639]
[1748605920889,6.1096,163.63,163.62,0.04383639]
[1748605923094,6.1094,163.64,163.62,0.04383639]
[1748605923789,6.1096,163.63,163.62,0.04383639]
[1748605926988,6.1094,163.64,163.62,0.04383639]
[1748605927183,0.03883476,163.65,163.62,0.04383639]
[1748605927490,6.72733462,163.74,163.62,0.04383639]
[1748605927695,6.0184,163.74,163.61,6.72733462]
[1748605927888,6.1063,163.72,163.69,6.1071]
[1748605928094,6.1063,163.72,163.64,6.72733462]
[1748605928095,3.911,163.74,163.64,6.72733462]
[1748605928395,6.1066,163.71,163.68,6.1075]
[1748605928589,6.14533129,163.71,163.68,6.15435163]
[1748605929297,0.03873129,163.71,163.68,0.04685163]
[1748605930296,0.03873129,163.71,163.7,6.107]
[1748605931589,0.03873129,163.71,163.69,6.1072]
[1748605932495,0.03873129,163.71,163.7,6.107]
[1748605932892,0.03873129,163.71,163.68,0.04685163]